fUSD/lending_fUSD_20260616
["ID","MTS","AMOUNT","RATE_DAILY","PERIOD"]
[425202465,1781572174000,-312.57182675,6.53e-05,2]
[425202466,1781572174000,-500.0,6.53e-05,2]
[425202468,1781572174000,-79.43358258,6.53e-05,2]
[425202469,1781572174000,-420.56641742,6.53e-05,2]
[425202470,1781572174000,-500.0,6.53e-05,2]
[425202471,1781572174000,-480.79011152,6.53e-05,2]
[425202467,1781572174000,-500.0,6.53e-05,2]
[425202472,1781572210000,-19.20988848,6.53e-05,2]
[425202475,1781572211000,-500.0,6.53e-05,2]
[425202473,1781572211000,-500.0,6.53e-05,2]
[425202474,1781572211000,-500.0,6.53e-05,2]
[425202476,1781572211000,-500.0,6.53e-05,2]
[425202477,1781572211000,-500.0,6.53e-05,2]
[425202478,1781572211000,-500.0,6.53e-05,2]
[425202479,1781572211000,-13.52950752,6.53e-05,2]
[425202481,1781572211000,-500.0,6.53e-05,2]
[425202480,1781572211000,-486.47049248,6.53e-05,2]
[425202482,1781572211000,-418.35815267,6.53e-05,2]
[425202520,1781572232000,-500.0,6.531e-05,2]
[425202528,1781572232000,-500.0,6.531e-05,2]
[425202522,1781572232000,-500.0,6.531e-05,2]
[425202527,1781572232000,-500.0,6.531e-05,2]
[425202511,1781572232000,-500.0,6.531e-05,2]
[425202513,1781572232000,-500.0,6.531e-05,2]
[425202515,1781572232000,-500.0,6.531e-05,2]
[425202509,1781572232000,-500.0,6.531e-05,2]
[425202502,1781572232000,-422.57820496,6.531e-05,2]
[425202500,1781572232000,-500.0,6.53e-05,2]
[425202518,1781572232000,-500.0,6.531e-05,2]
[425202494,1781572232000,-500.0,6.53e-05,2]
[425202498,1781572232000,-500.0,6.53e-05,2]
[425202507,1781572232000,-500.0,6.531e-05,2]
[425202496,1781572232000,-500.0,6.53e-05,2]
[425202492,1781572232000,-500.0,6.53e-05,2]
[425202489,1781572232000,-81.64184733,6.53e-05,2]
[425202505,1781572232000,-500.0,6.531e-05,2]
[425202525,1781572232000,-500.0,6.531e-05,2]
[425202532,1781572232000,-500.0,6.531e-05,2]
[425202524,1781572232000,-500.0,6.531e-05,2]
[425202545,1781572232000,-500.0,6.531e-05,2]
[425202543,1781572232000,-500.0,6.531e-05,2]
[425202541,1781572232000,-500.0,6.531e-05,2]
[425202544,1781572232000,-500.0,6.531e-05,2]
[425202540,1781572232000,-500.0,6.531e-05,2]
[425202542,1781572232000,-500.0,6.531e-05,2]
[425202536,1781572232000,-500.0,6.531e-05,2]
[425202538,1781572232000,-500.0,6.531e-05,2]
[425202539,1781572232000,-500.0,6.531e-05,2]
[425202535,1781572232000,-500.0,6.531e-05,2]
[425202534,1781572232000,-500.0,6.531e-05,2]
[425202537,1781572232000,-500.0,6.531e-05,2]
[425202533,1781572232000,-500.0,6.531e-05,2]
[425202531,1781572232000,-500.0,6.531e-05,2]
[425202546,1781572232000,-500.0,6.531e-05,2]
[425202529,1781572232000,-500.0,6.531e-05,2]
[425202530,1781572232000,-500.0,6.531e-05,2]
[425202526,1781572232000,-500.0,6.531e-05,2]
[425202549,1781572233000,-3712.36932298,6.533e-05,2]
[425202547,1781572233000,-500.0,6.531e-05,2]
[425202550,1781572233000,-97637.37020737,6.558e-05,2]
[425202548,1781572233000,-150.0,6.532e-05,2]
[425202551,1781572234000,-79442.15453257,6.558e-05,2]
[425202552,1781572234000,-1254.41808677,6.558e-05,2]
[425202557,1781572238000,-1788.30262514,6.558e-05,2]
[425202558,1781572238000,-1011.48616546,6.558e-05,2]
[425202556,1781572238000,-330.29953279,6.558e-05,2]
[425202555,1781572238000,-1033.77667629,6.558e-05,2]
[425202553,1781572238000,-11155.94219281,6.558e-05,2]
[425202599,1781572240000,-9174.3,6.665e-05,2]
[425202597,1781572240000,-22493.86,6.658e-05,2]
[425202595,1781572240000,-2116.785,6.655e-05,2]
[425202596,1781572240000,-218.796,6.655e-05,2]
[425202591,1781572240000,-116019.4944706,6.558e-05,2]
[425202594,1781572240000,-150.0,6.597e-05,2]
[425202592,1781572240000,-46725.7977555,6.558e-05,2]
[425202600,1781572240000,-3155.9,6.672e-05,2]
[425202593,1781572240000,-2143600.9577547,6.558e-05,2]
[425202602,1781572240000,-303.17407378,6.694e-05,2]
[425202610,1781572240000,-2928.58,6.817e-05,2]
[425202598,1781572240000,-150.0,6.663e-05,2]
[425202612,1781572240000,-2809.58675776,6.9e-05,2]
[425202609,1781572240000,-17600.0,6.8e-05,2]
[425202611,1781572240000,-150.0,6.859e-05,2]
[425202607,1781572240000,-150.0,6.728e-05,2]
[425202601,1781572240000,-500.0,6.694e-05,2]
[425202605,1781572240000,-8800.0,6.7e-05,2]
[425202608,1781572240000,-150.0,6.793e-05,2]
[425202603,1781572240000,-170.20819984,6.699e-05,2]
[425202604,1781572240000,-704.24887089,6.699e-05,2]
[425202606,1781572240000,-990.82,6.725e-05,2]
[425202646,1781572243000,-501.01813265,6.9e-05,2]
[425202652,1781572245000,-3510.14526853,6.9e-05,2]
[425202653,1781572245000,-2263.24434346,6.9e-05,2]
[425202656,1781572246000,-506.0,6.9e-05,2]
[425202655,1781572246000,-2467.00967057,6.9e-05,2]
[425202654,1781572246000,-2351.9,6.9e-05,2]
[425202659,1781572289000,291.32,0.0003,120]
[425202661,1781572327000,161.6151237,6.532e-05,7]
[425202660,1781572327000,200.61478724,6.663e-05,7]
[425202662,1781572392000,-237.09674106,6.53e-05,2]
[425202663,1781572446000,-500.0,6.899e-05,2]
[425202665,1781572447000,650.54,0.0003,120]
[425202664,1781572447000,1561.3,0.0003,120]
[425202666,1781572500000,-257.36628799,6.898e-05,2]
[425202667,1781572523000,2668.9679054,0.00030137,120]
[425202668,1781572552000,-500.0,6.898e-05,2]
[425202669,1781572605000,-500.0,6.898e-05,2]
[425202670,1781572659000,-500.0,6.897e-05,2]
[425202671,1781572661000,232.77128775,0.0003011,120]
[425202672,1781572712000,-150.0,6.896e-05,2]
[425202673,1781572716000,220.20163821,0.0003011,120]
[425202674,1781572732000,324.38,0.00030077,120]
[425202675,1781572765000,-500.0,6.896e-05,2]
[425202676,1781572775000,158.70809376,0.0003011,120]
[425202677,1781572820000,-500.0,6.896e-05,2]
[425202678,1781572874000,-500.0,6.896e-05,2]
[425202679,1781573088000,-1376.29517584,6.762e-05,2]
[425202680,1781573110000,-317.13282416,6.762e-05,2]
[425202681,1781573162000,-175.036,6.762e-05,2]
[425202682,1781573215000,-150.0,6.83e-05,2]
[425202683,1781573217000,-250.0,6.898e-05,2]
[425202684,1781573217000,-133.18497971,6.899e-05,2]
[425202685,1781573269000,-1416.87229178,6.7e-05,2]
[425202686,1781573291000,-1416.87229178,6.7e-05,2]
[425202687,1781573292000,600.82622843,0.00030137,120]
[425202688,1781573312000,-1040.65871299,6.7e-05,2]
[425202689,1781573334000,-1040.65871299,6.7e-05,2]
[425202693,1781573335000,-1105.54638146,6.8e-05,2]
[425202691,1781573335000,-652.78231462,6.7e-05,2]
[425202692,1781573335000,-147.21768538,6.7e-05,2]
[425202690,1781573335000,-2084.93799046,6.7e-05,2]
[425202694,1781573355000,-150.0,6.766e-05,2]
[425202695,1781573356000,-2817.52999252,6.8e-05,2]
[425202697,1781573356000,400.29488049,0.00030137,120]
[425202696,1781573356000,-1021.44625055,6.8e-05,2]
[425202699,1781573374000,-259.96970574,6.8e-05,2]
[425202698,1781573374000,-2894.30951738,6.8e-05,2]
[425202700,1781573407000,-6001.19815235,6.8e-05,2]
[425202701,1781573408000,-1700.0,6.8e-05,2]
[425202702,1781573414000,185.0,0.000301,120]
[425202731,1781573432000,-97.04414234,6.698e-05,2]
[425202735,1781573432000,-500.0,6.698e-05,2]
[425202734,1781573432000,-500.0,6.698e-05,2]
[425202733,1781573432000,-500.0,6.698e-05,2]
[425202730,1781573432000,-388.019697,6.698e-05,2]
[425202728,1781573432000,-350.87683934,6.698e-05,2]
[425202708,1781573432000,-500.0,6.698e-05,2]
[425202709,1781573432000,-149.12316066,6.698e-05,2]
[425202707,1781573432000,-500.0,6.698e-05,2]
[425202706,1781573432000,-500.0,6.698e-05,2]
[425202732,1781573432000,-500.0,6.698e-05,2]
[425202729,1781573432000,-14.93616066,6.698e-05,2]
[425202737,1781573432000,-500.0,6.698e-05,2]
[425202738,1781573432000,-216.09656886,6.8e-05,2]
[425202750,1781573432000,-665.79967857,6.9e-05,2]
[425202749,1781573432000,-225993.38784432,6.9e-05,2]
[425202746,1781573432000,-245.19784961,6.899e-05,2]
[425202744,1781573432000,-500.0,6.899e-05,2]
[425202747,1781573432000,-500.0,6.899e-05,2]
[425202745,1781573432000,-500.0,6.899e-05,2]
[425202736,1781573432000,-500.0,6.698e-05,2]
[425202743,1781573432000,-18.81502029,6.899e-05,2]
[425202740,1781573432000,-150.0,6.817e-05,2]
[425202739,1781573432000,-252.83305611,6.808e-05,2]
[425202741,1781573432000,-112.3066084,6.833e-05,2]
[425202748,1781573432000,-39219.59307122,6.9e-05,2]
[425202742,1781573432000,-37.6933916,6.833e-05,2]
[425202787,1781573433000,-736.7921989,6.9e-05,2]
[425202784,1781573433000,-500.0,6.698e-05,2]
[425202786,1781573433000,-277.54076263,6.808e-05,2]
[425202781,1781573433000,-500.0,6.698e-05,2]
[425202779,1781573433000,-224.33437297,6.698e-05,2]
[425202775,1781573433000,-383.48009127,6.698e-05,2]
[425202790,1781573433000,-1008.0592262,6.9e-05,2]
[425202777,1781573433000,-275.66562703,6.698e-05,2]
[425202822,1781573438000,-462.80989095,6.698e-05,2]
[425202816,1781573438000,150.01685049,0.00011,3]
[425202815,1781573438000,150.01685049,0.00011,3]
[425202833,1781573442000,-500.0,6.698e-05,2]
[425202832,1781573442000,-500.0,6.698e-05,2]
[425202831,1781573442000,-37.19010905,6.698e-05,2]
[425202834,1781573442000,-500.0,6.698e-05,2]
[425202836,1781573442000,-500.0,6.698e-05,2]
[425202838,1781573442000,-791.1615828,6.9e-05,2]
[425202839,1781573442000,-1461.68740396,6.9e-05,2]
[425202837,1781573442000,-1759738.43708803,6.9e-05,2]
[425202835,1781573442000,-500.0,6.698e-05,2]
[425202902,1781573443000,-19896.46379926,6.9e-05,2]
[425202898,1781573443000,-704.01606012,6.9e-05,2]
[425202896,1781573443000,-706.16435279,6.531e-05,2]
[425202894,1781573443000,-171.53027001,6.531e-05,2]
[425202873,1781573443000,-9183.99255534,6.9e-05,2]
[425202875,1781573443000,-303.21040821,6.9e-05,2]
[425203024,1781573447000,-500.0,6.698e-05,2]
[425203021,1781573447000,-500.0,6.698e-05,2]
[425203022,1781573447000,-500.0,6.698e-05,2]
[425203023,1781573447000,-500.0,6.698e-05,2]
[425203025,1781573447000,-500.0,6.698e-05,2]
[425203026,1781573447000,-500.0,6.698e-05,2]
[425203028,1781573447000,-70802.18423367,6.9e-05,2]
[425203027,1781573447000,-500.0,6.698e-05,2]
[425203031,1781573447000,-2581.65183671,6.9e-05,2]
[425203030,1781573447000,-4041.5,6.9e-05,2]
[425203029,1781573447000,-12503.71723138,6.9e-05,2]
[425203040,1781573470000,353.0,0.0003013,120]
[425203042,1781573499000,154.56281565,0.00011,3]
[425203043,1781573503000,690907.77,0.00030136,120]
[425203046,1781573521000,-103.71465392,2.09e-05,2]
[425203047,1781573521000,-396.28534608,2.106e-05,2]
[425203045,1781573521000,-46.28534608,2.09e-05,2]
[425203044,1781573521000,-453.71465392,2.064e-05,2]
[425203051,1781573522000,-282.8390377,2.27e-05,2]
[425203050,1781573522000,-453.71465392,2.148e-05,2]
[425203049,1781573522000,-272.0,2.11e-05,2]
[425203048,1781573522000,-57.42930784,2.106e-05,2]
[425203052,1781573534000,248.87947457,0.0003013,120]
[425203053,1781573615000,3921.65,0.00030137,120]
[425203054,1781573637000,-1169.79855209,6.664e-05,2]
[425203055,1781573658000,-201.19644791,6.664e-05,2]
[425203056,1781573699000,-175.549,6.664e-05,2]
[425203058,1781573700000,-25.549,6.747e-05,2]
[425203057,1781573700000,-150.0,6.693e-05,2]
[425203059,1781573740000,-224.451,6.747e-05,2]
[425203060,1781573742000,-224.451,6.798e-05,2]
[425203061,1781573764000,-706.16435279,6.698e-05,2]
[425203062,1781573786000,-171.53027001,6.698e-05,2]
[425203064,1781573817000,-312.69209788,6.748e-05,2]
[425203065,1781573839000,-500.0,6.799e-05,2]
[425203066,1781573871000,-500.0,6.799e-05,2]
[425203067,1781573892000,-221.63849473,6.799e-05,2]
[425203068,1781573926000,-276.64724708,6.799e-05,2]
[425203069,1781573947000,-500.0,6.799e-05,2]
[425203070,1781573979000,-500.0,6.799e-05,2]
[425203071,1781574034000,-223.34777915,6.799e-05,2]
[425203072,1781574086000,-150.0,6.799e-05,2]
[425203073,1781574107000,167.31080361,0.00030137,120]
[425203074,1781574201000,210.0,0.00030137,120]
[425203076,1781574293000,-1096.796,6.664e-05,2]
[425203077,1781574348000,-175.55,6.664e-05,2]
[425203078,1781574402000,-216.09656886,6.666e-05,2]
[425203080,1781574407000,-68.67789974,6.766e-05,2]
[425203079,1781574407000,-150.0,6.716e-05,2]
[425203081,1781574456000,-3192.40313705,6.7e-05,2]
[425203082,1781574479000,-4507.59686295,6.7e-05,2]
[425203083,1781574529000,-1674.689909,6.667e-05,2]
[425203084,1781574555000,-6824.0566,6.667e-05,2]
[425203085,1781574579000,-500.0,6.666e-05,2]
[425203086,1781574580000,-334.54357639,6.666e-05,2]
[425203087,1781574580000,-443.00408023,6.666e-05,2]
[425203092,1781574592000,-1226.88085424,6.667e-05,2]
[425203089,1781574592000,-500.0,6.666e-05,2]
[425203091,1781574592000,-1557.66221119,6.667e-05,2]
[425203090,1781574592000,-588.46858964,6.666e-05,2]
[425203088,1781574592000,-56.99591977,6.666e-05,2]
[425203093,1781574603000,300.0,6.666e-05,2]
[425203102,1781574634000,-1893.71038737,6.667e-05,2]
[425203103,1781574636000,-268144.7231185,6.667e-05,2]
[425203105,1781574636000,-56058.70505394,6.667e-05,2]
[425203104,1781574636000,-92887.53045339,6.667e-05,2]
[425203458,1781574656000,-1893.71038737,6.667e-05,2]
[425203460,1781574657000,-1837.41532606,6.667e-05,2]
[425203461,1781574657000,-3192.40313705,6.667e-05,2]
[425203459,1781574657000,-897.49999999,6.667e-05,2]
[425203463,1781574659000,-3388.74453504,6.667e-05,2]
[425203462,1781574659000,-1991.34,6.667e-05,2]
[425203468,1781574660000,-33150.0,6.667e-05,2]
[425203466,1781574660000,-331823.39138747,6.667e-05,2]
[425203469,1781574660000,-999050.59314298,6.667e-05,2]
[425203464,1781574660000,-741.06098762,6.667e-05,2]
[425203465,1781574660000,-959.95065029,6.667e-05,2]
[425203467,1781574660000,-834.49,6.667e-05,2]
[425203471,1781574661000,69.45267753,6.634e-05,2]
[425203470,1781574661000,200.0,6.634e-05,2]
[425203472,1781574668000,364.05827605,6.999e-05,7]
[425203473,1781574669000,151.0,6.664e-05,2]
[425203475,1781574669000,123.29905654,6.664e-05,2]
[425203474,1781574669000,27.70094346,6.664e-05,2]
[425203476,1781574698000,105.14270715,6.5e-05,2]
[425203477,1781574698000,44.85729285,6.5e-05,2]
[425203479,1781574756000,174.35427853,6.566e-05,2]
[425203480,1781574756000,122.34939333,6.566e-05,2]
[425203478,1781574756000,203.29632814,6.566e-05,2]
[425203481,1781574760000,150.0,6.5e-05,2]
[425203482,1781574787000,3219.28,0.00030136,120]
[425203484,1781574808000,47.2615317,6.534e-05,2]
[425203483,1781574808000,180.383,6.534e-05,2]
[425203486,1781574808000,180.71784115,6.534e-05,2]
[425203487,1781574808000,157.38134017,6.534e-05,2]
[425203485,1781574808000,500.0,6.534e-05,2]
[425203488,1781574808000,161.90081868,6.534e-05,2]
[425203489,1781574809000,312.15255407,6.534e-05,2]
[425203493,1781574809000,153.23195691,6.534e-05,2]
[425203490,1781574809000,500.0,6.534e-05,2]
[425203492,1781574809000,286.26295732,6.534e-05,2]
[425203491,1781574809000,151.0,6.534e-05,2]
[425203494,1781574834000,150.0,6.5e-05,2]
[425203495,1781574859000,-445.07858956,6.667e-05,2]
[425203497,1781574860000,103.23195691,6.666e-05,2]
[425203496,1781574860000,46.76804309,6.666e-05,2]
[425203500,1781574861000,136.57195691,6.433e-05,2]
[425203499,1781574861000,63.42804309,6.433e-05,2]
[425203498,1781574861000,176.03920659,0.0002,120]
[425203501,1781574913000,-500.0,6.666e-05,2]
[425203502,1781574913000,20.89804309,6.5e-05,2]
[425203503,1781574913000,129.10195691,6.5e-05,2]
[425203504,1781574913000,139.72264038,6.567e-05,2]
[425203505,1781574913000,175.87,6.567e-05,2]
[425203506,1781574913000,153.0,6.567e-05,2]
[425203507,1781574913000,31.40735962,6.567e-05,2]
[425203508,1781574914000,246.33211438,6.665e-05,2]
[425203509,1781574914000,53.66788562,6.665e-05,2]
[425203510,1781574914000,467.0,0.00030137,120]
[425203511,1781574914000,-557.08927496,6.666e-05,2]
[425203513,1781574914000,-500.0,6.666e-05,2]
[425203512,1781574914000,-500.0,6.666e-05,2]
[425203516,1781574914000,-500.0,6.666e-05,2]
[425203515,1781574914000,-500.0,6.666e-05,2]
[425203522,1781574914000,-392.99687362,6.666e-05,2]
[425203521,1781574914000,-500.0,6.666e-05,2]
[425203520,1781574914000,-500.0,6.666e-05,2]
[425203514,1781574914000,-500.0,6.666e-05,2]
[425203518,1781574914000,-500.0,6.666e-05,2]
[425203519,1781574914000,-500.0,6.666e-05,2]
[425203517,1781574914000,-500.0,6.666e-05,2]
[425203530,1781574915000,-500.0,6.666e-05,2]
[425203531,1781574915000,-49.91385142,6.666e-05,2]
[425203529,1781574915000,-500.0,6.666e-05,2]
[425203528,1781574915000,-500.0,6.666e-05,2]
[425203527,1781574915000,-500.0,6.666e-05,2]
[425203526,1781574915000,-500.0,6.666e-05,2]
[425203525,1781574915000,-500.0,6.666e-05,2]
[425203523,1781574915000,-500.0,6.666e-05,2]
[425203524,1781574915000,-500.0,6.666e-05,2]
[425203532,1781574929000,3341.1962188,0.00030136,120]
[425203535,1781574939000,449.60840094,6.528e-05,2]
[425203534,1781574939000,115.69329787,6.528e-05,2]
[425203537,1781574939000,157.47,6.528e-05,2]
[425203538,1781574939000,110.56830119,6.528e-05,2]
[425203536,1781574939000,166.66,6.528e-05,2]
[425203544,1781574941000,156.42711952,6.665e-05,2]
[425203543,1781574941000,174.85975036,6.665e-05,2]
[425203541,1781574941000,244.50225741,6.665e-05,2]
[425203539,1781574941000,78.00345957,6.665e-05,2]
[425203542,1781574941000,89.75184956,6.665e-05,2]
[425203540,1781574941000,153.0,6.665e-05,2]
[425203545,1781574966000,-169.78394761,6.665e-05,2]
[425203546,1781575019000,-253.1,6.256e-05,2]
[425203548,1781575021000,-150.0,6.425e-05,2]
[425203547,1781575021000,-150.0,6.362e-05,2]
[425203549,1781575021000,-150.0,6.488e-05,2]
[425203553,1781575022000,-9000.0,6.667e-05,2]
[425203552,1781575022000,-250.0,6.667e-05,2]
[425203550,1781575022000,-150.0,6.5e-05,2]
[425203551,1781575022000,-150.0,6.667e-05,2]
[425203554,1781575026000,-150.0,6.5e-05,2]
[425203556,1781575026000,-500.0,6.666e-05,2]
[425203557,1781575026000,-239.96249247,6.666e-05,2]
[425203558,1781575026000,-8810.48840753,6.667e-05,2]
[425203555,1781575026000,-299.5491,6.567e-05,2]
[425203559,1781575027000,-10000.0,6.667e-05,2]
[425203560,1781575028000,-10000.0,6.667e-05,2]
[425203561,1781575033000,-50000.0,6.667e-05,2]
[425203562,1781575034000,-50000.0,6.667e-05,2]
[425203564,1781575035000,249.98,0.00030136,120]
[425203563,1781575035000,-50000.0,6.667e-05,2]
[425203565,1781575036000,-500.0,6.666e-05,2]
[425203566,1781575036000,-500.0,6.666e-05,2]
[425203567,1781575036000,-500.0,6.666e-05,2]
[425203568,1781575036000,-500.0,6.666e-05,2]
[425203569,1781575036000,-500.0,6.666e-05,2]
[425203572,1781575036000,-500.0,6.666e-05,2]
[425203573,1781575036000,-500.0,6.666e-05,2]
[425203571,1781575036000,-394.37722108,6.666e-05,2]
[425203574,1781575036000,-500.0,6.666e-05,2]
[425203575,1781575036000,-500.0,6.666e-05,2]
[425203576,1781575036000,-44605.62277892,6.667e-05,2]
[425203570,1781575036000,-500.0,6.666e-05,2]
[425203578,1781575037000,-500.0,6.666e-05,2]
[425203577,1781575037000,-500.0,6.666e-05,2]
[425203579,1781575037000,-500.0,6.666e-05,2]
[425203581,1781575037000,-500.0,6.666e-05,2]
[425203584,1781575037000,-500.0,6.666e-05,2]
[425203582,1781575037000,-500.0,6.666e-05,2]
[425203583,1781575037000,-500.0,6.666e-05,2]
[425203585,1781575037000,-46000.0,6.667e-05,2]
[425203580,1781575037000,-500.0,6.666e-05,2]
[425203586,1781575038000,-50000.0,6.667e-05,2]
[425203587,1781575039000,-50000.0,6.667e-05,2]
[425203588,1781575040000,-50000.0,6.667e-05,2]
[425203589,1781575043000,-50000.0,6.667e-05,2]
[425203591,1781575050000,-49900.0,6.667e-05,2]
[425203597,1781575074000,-1184.12676607,6.667e-05,2]
[425203598,1781575076000,200.81,6.738e-05,7]
[425203599,1781575095000,-1184.12676607,6.664e-05,2]
[425203600,1781575116000,-150.0,6.5e-05,2]
[425203601,1781575167000,-1739.43,6.263e-05,2]
[425203602,1781575222000,-1547.15,6.234e-05,2]
[425203603,1781575245000,-1547.15,6.234e-05,2]
[425203604,1781575248000,331.54,0.000301,120]
[425203605,1781575277000,1448.27,0.00030137,120]
[425203607,1781575279000,192.92,5.824e-05,2]
[425203606,1781575279000,192.92,4.659e-05,2]
[425203611,1781575284000,144.68985551,5.764e-05,2]
[425203610,1781575284000,1311.04288431,5.764e-05,2]
[425203609,1781575284000,1377.26434036,5.764e-05,2]
[425203608,1781575284000,400.83291982,5.764e-05,2]
[425203612,1781575366000,394.75,5.783e-05,2]
[425203613,1781575414000,-150.0,6.231e-05,2]
[425203615,1781575416000,634.20904087,5.758e-05,2]
[425203614,1781575416000,786.68095913,5.758e-05,2]
[425203616,1781575417000,10000.0,0.00030137,120]
[425203617,1781575419000,10000.0,0.00030137,120]
[425203618,1781575420000,10000.0,0.00030137,120]
[425203619,1781575421000,10000.0,0.00030137,120]
[425203620,1781575423000,10000.0,0.00030137,120]
[425203621,1781575467000,-1061.2637203,6.232e-05,2]
[425203622,1781575471000,889.69,5.783e-05,2]
[425203623,1781575492000,-669.50472283,6.232e-05,2]
[425203624,1781575495000,1500.0,0.00030137,120]
[425203625,1781575507000,1000.0,0.00030136,120]
[425203626,1781575510000,1017.88420203,5.767e-05,2]
[425203627,1781575510000,1084.46579797,5.767e-05,2]
[425203628,1781575513000,-300.0,6.23e-05,2]
[425203629,1781575513000,-9700.0,6.231e-05,2]
[425203642,1781575516000,-500.0,6.231e-05,2]
[425203639,1781575516000,-378.66858594,6.231e-05,2]
[425203635,1781575516000,-183.00550022,6.231e-05,2]
[425203636,1781575516000,-446.88709424,6.231e-05,2]
[425203634,1781575516000,-470.41207438,6.231e-05,2]
[425203633,1781575516000,-150.0,6.231e-05,2]
[425203632,1781575516000,-150.14064355,6.231e-05,2]
[425203630,1781575516000,-498.37417021,6.231e-05,2]
[425203631,1781575516000,-216.13448155,6.231e-05,2]
[425203637,1781575516000,-500.0,6.231e-05,2]
[425203640,1781575516000,-500.0,6.231e-05,2]
[425203638,1781575516000,-500.0,6.231e-05,2]
[425203643,1781575516000,-286.06186223,6.231e-05,2]
[425203654,1781575516000,-218.21699167,6.231e-05,2]
[425203652,1781575516000,-848.89752772,6.231e-05,2]
[425203641,1781575516000,-500.0,6.231e-05,2]
[425203651,1781575516000,-500.0,6.231e-05,2]
[425203650,1781575516000,-329.52314499,6.231e-05,2]
[425203653,1781575516000,-500.0,6.231e-05,2]
[425203648,1781575516000,-500.0,6.231e-05,2]
[425203647,1781575516000,-500.0,6.231e-05,2]
[425203644,1781575516000,-151.62951699,6.231e-05,2]
[425203646,1781575516000,-172.04840631,6.231e-05,2]
[425203645,1781575516000,-500.0,6.231e-05,2]
[425203649,1781575516000,-500.0,6.231e-05,2]
[425203656,1781575517000,-500.0,6.231e-05,2]
[425203655,1781575517000,-281.78300833,6.231e-05,2]
[425203658,1781575517000,-500.0,6.231e-05,2]
[425203657,1781575517000,-848.89752772,6.231e-05,2]
[425203660,1781575517000,-848.89752772,6.231e-05,2]
[425203661,1781575517000,-557.10155818,6.231e-05,2]
[425203662,1781575517000,-500.0,6.231e-05,2]
[425203659,1781575517000,-500.0,6.231e-05,2]
[425203663,1781575517000,-848.89752772,6.231e-05,2]
[425203665,1781575517000,-848.89752772,6.231e-05,2]
[425203666,1781575517000,-529.28501125,6.231e-05,2]
[425203667,1781575517000,-848.89752772,6.231e-05,2]
[425203668,1781575517000,-848.89752772,6.231e-05,2]
[425203669,1781575517000,-848.89752772,6.231e-05,2]
[425203670,1781575517000,-189.5477282,6.231e-05,2]
[425203664,1781575517000,-500.0,6.231e-05,2]
[425203671,1781575518000,-659.34979952,6.231e-05,2]
[425203672,1781575518000,-848.89752772,6.231e-05,2]
[425203673,1781575518000,-848.89752772,6.231e-05,2]
[425203676,1781575518000,-848.89752772,6.231e-05,2]
[425203675,1781575518000,-848.89752772,6.231e-05,2]
[425203677,1781575518000,-848.89752772,6.231e-05,2]
[425203674,1781575518000,-848.89752772,6.231e-05,2]
[425203683,1781575519000,-2.77739556,6.231e-05,2]
[425203682,1781575519000,-848.89752772,6.231e-05,2]
[425203680,1781575519000,-848.89752772,6.231e-05,2]
[425203681,1781575519000,-848.89752772,6.231e-05,2]
[425203678,1781575519000,-848.89752772,6.231e-05,2]
[425203679,1781575519000,-848.89752772,6.231e-05,2]
[425203687,1781575520000,-848.89752772,6.231e-05,2]
[425203685,1781575520000,-848.89752772,6.231e-05,2]
[425203684,1781575520000,-846.12013216,6.231e-05,2]
[425203686,1781575520000,-848.89752772,6.231e-05,2]
[425203688,1781575520000,-848.89752772,6.231e-05,2]
[425203692,1781575520000,-848.89752772,6.231e-05,2]
[425203690,1781575520000,-848.89752772,6.231e-05,2]
[425203694,1781575520000,-848.89752772,6.231e-05,2]
[425203695,1781575520000,-664.90459064,6.231e-05,2]
[425203689,1781575520000,-848.89752772,6.231e-05,2]
[425203691,1781575520000,-848.89752772,6.231e-05,2]
[425203693,1781575520000,-848.89752772,6.231e-05,2]
[425203696,1781575544000,-183.99293708,6.231e-05,2]
[425203697,1781575599000,-150.0,6.23e-05,2]
[425203699,1781575601000,335.36820032,5.87e-05,2]
[425203700,1781575601000,1285.40871683,5.87e-05,2]
[425203698,1781575601000,212.52,5.917e-05,2]
[425203701,1781575653000,-911.19588626,5.87e-05,2]
[425203702,1781575677000,-1880.91719659,5.87e-05,2]
[425203703,1781575727000,-200.0,5.728e-05,2]
[425203704,1781575730000,176.1,0.00028973,120]
[425203706,1781575781000,-3482.70071117,5.753e-05,2]